Cogmind - Beta 12 @@@ ROGUE MODE // 2023.04.26 @ 19:01:56 Player: Mr Goldstein Result: Destroyed by as-76364 with Assembled Focal Cannon Performance ------------- Evolutions (3) 1500 Regions Visited (9) 1800 Robots Destroyed (21) 105 Value Destroyed (536) 536 Prototype IDs (6) 120 Alien Tech Used (0) 0 Bonus (506) 506 TOTAL SCORE: 4567 Bonus ------- Pacifist 200 High Alert Combat Kills 6 Met Imprinter 300 Cogmind --------- Core Integrity 0/700 Matter 81/300 Energy 52/160 System Corruption 0% Temperature Cool (21) Movement Flying (32) Location -7/Deep Caves Parts ------- > --- POWER (2) -------- Light Nuclear Core > --- PROPULSION (6) --- Improved Cesium-ion Thruster Cooled VTOL Module > --- UTILITY (3) ------ Improved Signal Interpreter Hacking Suite > --- WEAPON (2) ------- Great Maul > --- INVENTORY (5) ---- Hacking Suite CR-A16's Pointy Stick Peak State ------------ > --- POWER ------------ Nuclear Core Enhanced Nuclear Core > --- PROPULSION ------- Improved VTOL Module Improved VTOL Module Improved Cesium-ion Thruster Cooled VTOL Module Cooled VTOL Module Cooled VTOL Module > --- UTILITY ---------- Improved Signal Interpreter Hacking Suite Hacking Suite > --- WEAPON ----------- Heavy Missile Launcher Great Maul > --- INVENTORY -------- Xenon Bombardment Thruster Improved Cesium-ion Thruster Hacking Suite Heavy Missile Launcher [Rating: 53] Favorites ----------- Power Enhanced Nuclear Core Engine Light Deuterium Engine Power Core Enhanced Nuclear Core Propulsion Cooled VTOL Module Treads Advanced Treads Flight Unit Cooled VTOL Module Utility Hacking Suite Processor Improved Signal Interpreter Hackware Hacking Suite Weapon Great Maul Launcher Heavy Missile Launcher Impact Weapon Great Maul Build | -11 -10 -9 -9 -9 -7 -7 -7 -7 -7 ------- Run | Jun Mat Mat Sto Rec Fac Low Low Zio Dee Slots Evolved 6 | . . 2 . . 4 . . . . Power 1 | . . . . . 1 . . . . Propulsion 4 | . . 2 . . 2 . . . . Utility 1 | . . . . . 1 . . . . Weapon . | . . . . . . . . . . Parts Attached 49 | 2 . 5 6 3 24 2 1 2 4 Power 8 | . . . 1 . 6 . . . 1 Engine 3 | . . . 1 . 2 . . . . Core 5 | . . . . . 4 . . . 1 Reactor . | . . . . . . . . . . Propulsion 24 | 2 . 5 2 . 11 1 . 1 2 Treads 8 | 2 . 5 1 . . . . . . Leg . | . . . . . . . . . . Wheel . | . . . . . . . . . . Hover . | . . . . . . . . . . Flight 16 | . . . 1 . 11 1 . 1 2 Utility 8 | . . . 1 3 4 . . . . Device . | . . . . . . . . . . Storage . | . . . . . . . . . . Processor 4 | . . . . 2 2 . . . . Hackware 4 | . . . 1 1 2 . . . . Protection . | . . . . . . . . . . Artifact . | . . . . . . . . . . Weapon 9 | . . . 2 . 3 1 1 1 1 Energy Gun . | . . . . . . . . . . Energy Cannon . | . . . . . . . . . . Ballistic Gun . | . . . . . . . . . . Ballistic Cannon . | . . . . . . . . . . Launcher 5 | . . . . . 1 1 1 1 1 Special Weapon . | . . . . . . . . . . Impact Weapon 4 | . . . 2 . 2 . . . . Slashing Weapon . | . . . . . . . . . . Piercing Weapon . | . . . . . . . . . . Special Melee Weapon . | . . . . . . . . . . Unidentified Prototypes 5 | . . . 2 . 3 . . . . Corrupted Parts 2 | . . . . 1 1 . . . . System Corruption 8 | . . . . 1 7 . . . . Parts Lost 17 | . . . . . 5 1 1 . 10 Power 2 | . . . . . . 1 . . 1 Propulsion 12 | . . . . . 5 . 1 . 6 Utility 1 | . . . . . . . . . 1 Weapon 2 | . . . . . . . . . 2 Highest Loss Streak 6 | . . . . . 2 1 1 . 6 To Critical Strikes . | . . . . . . . . . . Average Slot Usage (%) 70 | . 28 39 57 73 66 87 84 88 73 Engine 1 | . . . . . 2 . . . . Core 4 | . . . . . 6 9 7 7 3 Treads 11 | . 28 39 44 44 1 . . . . Flight 25 | . . . . . 26 46 45 43 40 Processor 4 | . . . . 1 4 7 7 7 7 Hackware 13 | . . . 3 17 17 15 15 15 10 Launcher 1 | . . . . . . . . 5 3 Impact Weapon 6 | . . . 10 11 5 7 7 7 7 Naked Turns . | . . . . . . . . . . Heaviest Build 19 | . . . 3 3 19 19 19 19 19 Greatest Support 66 | 20 3 66 22 3 31 26 26 34 28 Greatest Overweight (x) . | . . . . . . . . . . Average Overweight (x) . | . . . . . . . . . . Largest Inventory Capacity 5 | 5 5 5 5 5 5 5 5 5 5 Average Capacity 5 | 5 5 5 5 5 5 5 5 5 5 Most Carried 5 | . . 5 5 5 5 5 5 5 5 Average Carried 3 | . . 2 4 5 3 4 4 4 3 Final Capacity 5 | 5 5 5 5 5 5 5 5 5 5 Final Carried 5 | . . 3 5 5 5 5 5 5 2 Class Distribution -------------------- 43% | Hacker-Sprinter 32% | Mutant 9% | Scavenger-Sprinter 7% | Hacker-Mutant 7% | Sprinter Dominant Class ---------------- Mutant | -10/Materials Mutant | -9/Materials Mutant | -9/Storage Mutant | -9/Recycling Hacker-Sprinter | -7/Factory Hacker-Sprinter | -7/Lower Caves Hacker-Sprinter | -7/Lower Caves Hacker-Sprinter | -7/Zion Mutant | -7/Deep Caves Resources | -11 -10 -9 -9 -9 -7 -7 -7 -7 -7 ----------- Run | Jun Mat Mat Sto Rec Fac Low Low Zio Dee Matter Collected 619 | 220 . 48 50 38 131 27 8 84 13 Remotely . | . . . . . . . . . . Salvage Created 396 | . . . 28 . 236 71 35 . 26 Parts 30 | . . . 2 . 13 10 4 . 1 Haulers Intercepted 1 | . . . . . 1 . . . . Recyclers Shooed . | . . . . . . . . . . Parts Field Recycled . | . . . . . . . . . . Retrieved Matter . | . . . . . . . . . . Parts Self-Destructed 10 | . . . . . . 8 2 . . Prevented . | . . . . . . . . . . Kills | -11 -10 -9 -9 -9 -7 -7 -7 -7 -7 ------- Run | Jun Mat Mat Sto Rec Fac Low Low Zio Dee Combat Hostiles Destroyed 18 | . . . . . 4 6 3 . 5 Melee 1 | . . . . . 1 . . . . AOE 17 | . . . . . 3 6 3 . 5 Classes Destroyed 6 | . . . 2 . 3 . . . 1 Builder 1 | . . . 1 . . . . . . Hauler 1 | . . . . . 1 . . . . Operator 4 | . . . 1 . 3 . . . . Watcher 2 | . . . . . 2 . . . . Swarmer 13 | . . . . . 4 6 3 . . Z-Technician 5 | . . . . . . . . . 5 Assembled 5 | . . . . . . . . . 5 Best Kill Streak 6 | . . . 2 . 4 6 3 . 5 Combat Bots Only 6 | . . . . . 4 6 3 . 3 Max Kills in Single Turn 4 | . . . 1 . 3 3 2 . 4 Gunslinging . | . . . . . . . . . . Exploded 3 | . . . . . 3 3 2 . 2 Melee 1 | . . . . . 1 . . . . Uniques/NPCs Destroyed . | . . . . . . . . . . Combat | -11 -10 -9 -9 -9 -7 -7 -7 -7 -7 -------- Run | Jun Mat Mat Sto Rec Fac Low Low Zio Dee Damage Taken 2625 | . 38 283 132 52 853 183 131 . 953 Core 815 | . . 55 15 26 448 . 41 . 230 Absorbed by Shields 74 | . . . . . 74 . . . . Regen/Repaired (Parts) 300 | . . . . . . . . 300 . Core Remaining (%) 92 | 100 100 . . 76 . . . . . Volleys Fired 14 | . . . . . 1 4 4 . 5 Largest 1 | . . . . . 1 1 1 . 1 Hottest 39 | . . . . . 39 39 39 . 39 Shots Fired 14 | . . . . . 1 4 4 . 5 Gun . | . . . . . . . . . . Cannon . | . . . . . . . . . . Launcher 14 | . . . . . 1 4 4 . 5 Special . | . . . . . . . . . . Kinetic . | . . . . . . . . . . Thermal . | . . . . . . . . . . Explosive 14 | . . . . . 1 4 4 . 5 Electromagnetic . | . . . . . . . . . . Robot Hit Streak 3 | . . . . . . 3 2 . 1 Robot Miss Streak 1 | . . . . . . 1 1 . 1 Penetration Max . | . . . . . . . . . . Secondary Targets . | . . . . . . . . . . Shots Hit Robots 19 | . . . 5 . 8 3 2 . 1 Core Hits 22 | . . 1 . . 4 3 3 . 11 Critical Kills 1 | . . . . . 1 . . . . Critical Parts Destroyed 1 | . . . . . 1 . . . . Critical Strikes 2 | . . . . . 2 . . . . Smash 2 | . . . . . 2 . . . . Melee Attacks 39 | . . . 9 . 25 . . 5 . Impact 39 | . . . 9 . 25 . . 5 . Slashing . | . . . . . . . . . . Piercing . | . . . . . . . . . . Sneak Attacks 5 | . . . 2 . 3 . . . . Combat Hostiles . | . . . . . . . . . . Follow-up Attacks . | . . . . . . . . . . Damage Inflicted 3646 | . . 27 271 . 619 435 276 . 2018 Guns . | . . . . . . . . . . Cannons . | . . . . . . . . . . Explosions 2871 | . . . . . 142 435 276 . 2018 Melee 743 | . . . 266 . 477 . . . . Ramming 32 | . . 27 5 . . . . . . Kinetic . | . . . . . . . . . . Thermal 1710 | . . . . . . . . . 1710 Explosive 1161 | . . . . . 142 435 276 . 308 Electromagnetic . | . . . . . . . . . . Impact 743 | . . . 266 . 477 . . . . Slashing . | . . . . . . . . . . Piercing . | . . . . . . . . . . Highest Corruption 13 | . . . . 1 13 13 13 13 . Average Corruption 8 | . . . . 1 8 13 13 13 . Corruption Purged . | . . . . . . . . . . Corruption Blocked . | . . . . . . . . . . Effects 25 | . . . . 2 15 3 4 1 . Message Errors 5 | . . . . 1 1 . 2 1 . Matter Fused 5 | . . . . . 5 . . . . Heat Flow Errors 3 | . . . . 1 2 . . . . Energy Discharges 3 | . . . . . 2 1 . . . Parts Rejected 1 | . . . . . . 1 . . . Data Loss (minor) 4 | . . . . . 2 1 1 . . Data Loss (major) 1 | . . . . . . . 1 . . Misdirections 3 | . . . . . 3 . . . . Overload Shots . | . . . . . . . . . . Overflow Damage 953 | . . . 98 . 200 102 . . 553 Projectiles . | . . . . . . . . . . Explosions 673 | . . . . . 18 102 . . 553 Melee 280 | . . . 98 . 182 . . . . Knockbacks 2 | . . . 1 . 1 . . . . Impact 2 | . . . 1 . 1 . . . . Kinetic . | . . . . . . . . . . Secondary . | . . . . . . . . . . Self-Inflicted Damage 442 | . . 11 2 . . 34 15 . 380 Shots 3 | . . . . . . 1 1 . 1 Rammed 8 | . . 7 1 . . . . . . Targets Rammed 8 | . . 7 1 . . . . . . Kicked . | . . . . . . . . . . Crushed . | . . . . . . . . . . Highest Temperature 309 | . . . . 167 309 31 25 96 15 Average Temperature 58 | . . . . 97 91 6 7 27 9 Received Heat Transfer 524 | . 12 78 36 18 183 27 36 . 134 Siege Activations . | . . . . . . . . . . Robots Corrupted . | . . . . . . . . . . Combat Hostiles . | . . . . . . . . . . Parts Fried 9 | . . . 2 . 7 . . . . Impact Corruptions 12 | . . . 3 . 9 . . . . Robots Melted . | . . . . . . . . . . Combat Hostiles . | . . . . . . . . . . Parts Melted . | . . . . . . . . . . Heat Transferred . | . . . . . . . . . . Parts Sabotaged . | . . . . . . . . . . Parts Stolen . | . . . . . . . . . . Parts Stripped . | . . . . . . . . . . Power Chain Reactions . | . . . . . . . . . . Missiles Intercepted . | . . . . . . . . . . Alert | -11 -10 -9 -9 -9 -7 -7 -7 -7 -7 ------- Run | Jun Mat Mat Sto Rec Fac Low Low Zio Dee Peak Influence 528 | . 30 147 146 86 528 . . . . Initial 85 | . . 12 61 56 85 . . . . Average 201 | . 7 49 96 57 309 . . . . Maximum Alert Level 2 | . . . . . 2 . . . . Low Security (%) 59 | 100 100 100 100 100 28 . . . . Level 1 19 | . . . . . 34 . . . . Level 2 20 | . . . . . 37 . . . . Level 3 . | . . . . . . . . . . Level 4 . | . . . . . . . . . . Level 5 . | . . . . . . . . . . High Security . | . . . . . . . . . . Max Security . | . . . . . . . . . . Squads Dispatched 12 | . 1 2 1 . 8 . . . . Investigation 6 | . . 1 . . 5 . . . . Extermination 1 | . . . . . 1 . . . . Reinforcement 5 | . 1 1 1 . 2 . . . . Assault . | . . . . . . . . . . Garrison . | . . . . . . . . . . Intercept . | . . . . . . . . . . Searches Triggered . | . . . . . . . . . . Construction Impeded . | . . . . . . . . . . Haulers Reinforced . | . . . . . . . . . . Active Scanning Responses . | . . . . . . . . . . Cargo Convoy Interrupts . | . . . . . . . . . . Stealth | -11 -10 -9 -9 -9 -7 -7 -7 -7 -7 --------- Run | Jun Mat Mat Sto Rec Fac Low Low Zio Dee Distress Signals 2 | . 1 1 . . . . . . . Communications Jammed . | . . . . . . . . . . Distress Signals . | . . . . . . . . . . Times Spotted 92 | . 4 13 5 2 35 15 6 . 12 Peak Tracking Total 11 | . 4 11 4 2 6 11 3 . 7 Tactical Retreats 14 | . . 1 . 1 8 3 . . 1 Traps | -11 -10 -9 -9 -9 -7 -7 -7 -7 -7 ------- Run | Jun Mat Mat Sto Rec Fac Low Low Zio Dee Traps Triggered 4 | . . . 1 . 3 . . . . Indirectly . | . . . . . . . . . . Trap Hack Attempts . | . . . . . . . . . . Triggered . | . . . . . . . . . . Disarmed . | . . . . . . . . . . Reprogrammed . | . . . . . . . . . . Reused . | . . . . . . . . . . Traps Extracted . | . . . . . . . . . . Installed . | . . . . . . . . . . Triggered . | . . . . . . . . . . Machines | -11 -10 -9 -9 -9 -7 -7 -7 -7 -7 ---------- Run | Jun Mat Mat Sto Rec Fac Low Low Zio Dee Machines Disabled 6 | . . . 2 . 2 . . . 2 Max in Single Turn 1 | . . . 1 . 1 . . . 1 Machines Repaired . | . . . . . . . . . . Machines Sabotaged . | . . . . . . . . . . Overloaded Fab Kills . | . . . . . . . . . . Hacking | -11 -10 -9 -9 -9 -7 -7 -7 -7 -7 --------- Run | Jun Mat Mat Sto Rec Fac Low Low Zio Dee Machines Accessed 17 | . . 1 . 3 13 . . . . Terminals 13 | . . 1 . 3 9 . . . . Fabricators 3 | . . . . . 3 . . . . Repair Stations . | . . . . . . . . . . Recycling Units 1 | . . . . . 1 . . . . Scanalyzers . | . . . . . . . . . . Garrison Access . | . . . . . . . . . . Total Hacks 42 | . . 3 . 6 33 . . . . Successful 19 | . . . . 4 15 . . . . Failed 23 | . . 3 . 2 18 . . . . Catastrophic 2 | . . . . 1 1 . . . . Database Lockouts . | . . . . . . . . . . Manual 33 | . . 3 1 6 19 . . 4 . Terminals 31 | . . 3 . 6 22 . . . . Fabricators 9 | . . . . . 9 . . . . Repair Stations . | . . . . . . . . . . Recycling Units 2 | . . . . . 2 . . . . Scanalyzers . | . . . . . . . . . . Garrison Access . | . . . . . . . . . . Terminal Hacks 4 | . . . . 1 3 . . . . Part Schematic 2 | . . . . 1 1 . . . . Robot Analysis 1 | . . . . . 1 . . . . Branch Access Points 1 | . . . . . 1 . . . . Fabricator Hacks 6 | . . . . . 6 . . . . Load Schematic 3 | . . . . . 3 . . . . Build 3 | . . . . . 3 . . . . Repair Station Hacks . | . . . . . . . . . . Recycling Unit Hacks 1 | . . . . . 1 . . . . Retrieve Components 1 | . . . . . 1 . . . . Scanalyzer . | . . . . . . . . . . Garrison Access Hacks . | . . . . . . . . . . Unauthorized Hacks 8 | . . . . 3 5 . . . . Terminals 8 | . . . . 3 5 . . . . Botnet 8 | . . . . 3 5 . . . . Fabricators . | . . . . . . . . . . Repair Stations . | . . . . . . . . . . Recycling Units . | . . . . . . . . . . Scanalyzers . | . . . . . . . . . . Garrison Access . | . . . . . . . . . . Data Cores Recovered 1 | . . . . . 1 . . . . Used 1 | . . . . . 1 . . . . Hacking Detections 13 | . . 1 . 1 11 . . . . Full Trace Events 7 | . . 1 . 1 5 . . . . Feedback Events 1 | . . . . . 1 . . . . Corruption 1 | . . . . . 1 . . . . Feedback Blocked . | . . . . . . . . . . Robot Schematics Acquired 3 | . . . . . . . . 3 . Robots Built . | . . . . . . . . . . Authchips . | . . . . . . . . . . Time . | . . . . . . . . . . Total Robot Build Rating . | . . . . . . . . . . Part Schematics Acquired 17 | . . . . 1 1 . . 15 . Parts Built 3 | . . . . . 3 . . . . Authchips 1 | . . . . . 1 . . . . Time 154 | . . . . . 154 . . . . Total Part Build Rating 9 | . . . . . 9 . . . . Parts Repaired . | . . . . . . . . . . Time . | . . . . . . . . . . Parts Recycled . | . . . . . . . . . . Recycled Matter . | . . . . . . . . . . Retrieved Matter . | . . . . . . . . . . Retrieved Components . | . . . . . . . . . . Parts Scanalyzed . | . . . . . . . . . . Part Schematics Acquired . | . . . . . . . . . . Parts Damaged . | . . . . . . . . . . Bothacking | -11 -10 -9 -9 -9 -7 -7 -7 -7 -7 ------------ Run | Jun Mat Mat Sto Rec Fac Low Low Zio Dee Used RIF Installer . | . . . . . . . . . . Robots Hacked . | . . . . . . . . . . Non-combat . | . . . . . . . . . . Combat . | . . . . . . . . . . Robot Hacks Applied . | . . . . . . . . . . Relay Couplers Released . | . . . . . . . . . . Fabnet Peak Effective % . | . . . . . . . . . . Robots Rewired . | . . . . . . . . . . Allies Hacked . | . . . . . . . . . . Hacks Repelled . | . . . . . . . . . . Allies | -11 -10 -9 -9 -9 -7 -7 -7 -7 -7 -------- Run | Jun Mat Mat Sto Rec Fac Low Low Zio Dee Total Allies . | . . . . . . . . . . Largest Group . | . . . . . . . . . . Highest-Rated Group . | . . . . . . . . . . Highest-Rated Ally . | . . . . . . . . . . Total Orders . | . . . . . . . . . . Ally Attacks . | . . . . . . . . . . Total Damage . | . . . . . . . . . . Kills . | . . . . . . . . . . Allies Corrupted . | . . . . . . . . . . Allies Melted . | . . . . . . . . . . Intel | -11 -10 -9 -9 -9 -7 -7 -7 -7 -7 ------- Run | Jun Mat Mat Sto Rec Fac Low Low Zio Dee Robot Analysis Total 1 | . . . . . 1 . . . . Derelict Logs Recovered 3 | . . . . . . . 1 2 . Drone Launches . | . . . . . . . . . . Drone Recoveries . | . . . . . . . . . . Exploration | -11 -10 -9 -9 -9 -7 -7 -7 -7 -7 ------------- Run | Jun Mat Mat Sto Rec Fac Low Low Zio Dee Turns Passed 1738 | 22 44 102 124 186 627 95 98 260 180 Spaces Moved 4377 | 30 88 161 149 361 1500 352 379 852 505 Core 817 | 26 88 158 135 361 49 . . . . Treads 21 | 4 . 3 14 . . . . . . Legs . | . . . . . . . . . . Wheels . | . . . . . . . . . . Hover . | . . . . . . . . . . Flight 3539 | . . . . . 1451 352 379 852 505 Fastest Speed 20 | 50 50 50 50 50 20 23 23 23 24 Average Speed 32 | 64 50 51 58 50 30 23 23 27 31 Slowest Speed 160 | 160 50 145 145 50 50 26 23 31 34 Overloaded Moves . | . . . . . . . . . . Propulsion Burnouts . | . . . . . . . . . . Robots Hopped 18 | . . . . . 16 2 . . . Cave-ins Triggered 1 | . . . . . 1 . . . . Exploration Rate (%) 47 | 4 34 24 32 71 36 55 59 86 78 Regions Visited 9 Branch Regions 6 Pre-discovered Areas 3 | . . . . . . . . 3 . Known Exits Taken 4 | . . . . . 1 1 1 1 . Unknown Exits Taken 5 | 1 1 1 1 1 . . . . . Scrap Searched 5 | . . . . . . 1 1 3 . Spaces Dug 31 | . . . . . 24 . 5 2 . Terrain Destroyed 155 | . . . . . 24 41 22 2 66 Melee 12 | . . . . . 10 . . 2 . Projectile . | . . . . . . . . . . AOE 143 | . . . . . 14 41 22 . 66 Terrain Rammed . | . . . . . . . . . . Walls Destroyed . | . . . . . . . . . . Machines Disabled . | . . . . . . . . . . Actions | -11 -10 -9 -9 -9 -7 -7 -7 -7 -7 --------- Run | Jun Mat Mat Sto Rec Fac Low Low Zio Dee Total 4574 | 31 87 178 169 365 1614 356 384 869 521 Wait 51 | . . . . . 34 . . 10 7 Move 4332 | 29 87 160 148 360 1467 347 378 851 505 Hop 18 | . . . . . 16 2 . . . Pick Up 14 | . . 3 1 . 9 . . 1 . Fast Attach 27 | 2 . 2 5 3 12 1 . 1 1 Attach 19 | . . . 1 . 12 1 1 1 3 Detach 9 | . . . 2 . 5 1 1 . . Swap 3 | . . 3 . . . . . . . Drop 17 | . . 3 2 2 10 . . . . Fire 14 | . . . . . 1 4 4 . 5 Melee 39 | . . . 9 . 25 . . 5 . Ram 8 | . . 7 1 . . . . . . Kick . | . . . . . . . . . . Crush . | . . . . . . . . . . Escape Stasis 23 | . . . . . 23 . . . . Rewire . | . . . . . . . . . . Trap . | . . . . . . . . . . Miscellaneous . | . . . . . . . . . . Route ------- -11/Junkyard -10/Materials -9/Materials -9/Storage -9/Recycling -7/Factory (discovered 5 exits: *Fac x3 / *Low x2) -7/Lower Caves -7/Lower Caves (discovered 2 exits: *Fac / *Zio) -7/Zion (discovered 2 exits: *Dee / *Pro) -7/Deep Caves History --------- Turn | Location | Event 12 | -11/Junkyard | Discovered new exit (range 13) 23 | -11/Junkyard | Entered Materials 59 | -10/Materials | Discovered new exit (range 14) 67 | -10/Materials | Entered another Materials area 67 | -9/Materials | Evolved 2 slots: Propulsion x2 149 | -9/Materials | Discovered new exit (range 10) 169 | -9/Materials | Entered Storage 291 | -9/Storage | Used back door to open Recycling access 291 | -9/Storage | Discovered new exit (range 5) 293 | -9/Storage | Entered Recycling 318 | -9/Recycling | Build established: Mutant 465 | -9/Recycling | Discovered new exit (range 14) 479 | -9/Recycling | Entered Factory 479 | -7/Factory | Evolved 4 slots: Power x1, Propulsion x2, Utility x1 658 | -7/Factory | Discovered new exit (range 12) 759 | -7/Factory | Fabricated Imp. VTOL Module (x1) 777 | -7/Factory | Identified exit to Factory 808 | -7/Factory | Crushed by falling debris 808 | -7/Factory | System corruption reached 10% 838 | -7/Factory | Discovered exit to Factory (range 9) 938 | -7/Factory | Core integrity fell below 50% 940 | -7/Factory | Fabricated Imp. VTOL Module? 959 | -7/Factory | Fabricated Imp. VTOL Module? 1013 | -7/Factory | Discovered exit to Factory (range 16) 1079 | -7/Factory | Identified exit to Lower Caves 1106 | -7/Factory | Entered Lower Caves 1112 | -7/Lower Caves | Encountered a Warlord checkpoint 1154 | -7/Lower Caves | Discovered new exit (range 14) 1156 | -7/Lower Caves | Identified exit to Lower Caves 1201 | -7/Lower Caves | Entered another Lower Caves area 1206 | -7/Lower Caves | Discovered exit to Factory (range 4) 1254 | -7/Lower Caves | Spotted B-75 Beast 1267 | -7/Lower Caves | Build established: Hacker-Sprinter 1280 | -7/Lower Caves | Learned location of 1 exit from Factory 1297 | -7/Lower Caves | Discovered new exit (range 10) 1299 | -7/Lower Caves | Identified exit to Zion 1299 | -7/Lower Caves | Entered Zion 1315 | -7/Zion | Discovered new exit (range 10) 1317 | -7/Zion | Identified exit to Proximity Caves 1335 | -7/Zion | Visited the Megawrench Repair Shop 1335 | -7/Zion | Megawrench repaired 8 parts 1339 | -7/Zion | System corruption cleaned by Quarantine Array 1350 | -7/Zion | Learned location of Armory (-3) 1368 | -7/Zion | Found CR-A16's Pointy Stick 1374 | -7/Zion | Acquired unknown access codes intercepted by a Zionite 1415 | -7/Zion | Learned Factory emergency access door positions 1553 | -7/Zion | Opened final containment barrier to the Deep Caves 1558 | -7/Zion | Discovered new exit (range 5) 1558 | -7/Zion | Saw the warning signs outside the Deep Caves entrance 1559 | -7/Zion | Identified exit to Deep Caves 1559 | -7/Zion | Entered Deep Caves 1630 | -7/Deep Caves | Z-Facility disabled 1662 | -7/Deep Caves | Lost 6 parts (1p3n1u1w) 1674 | -7/Deep Caves | Attacked by Z-Imprinter 1698 | -7/Deep Caves | Core integrity fell below 20% 1735 | -7/Deep Caves | Spotted as-76364 1739 | -7/Deep Caves | Destroyed by as-76364 with Assembled Focal Cannon Last Messages --------------- 01631_ Destroyed Mak. Flight Unit. 01631_ Hacking Suite destroyed. 01631_ Destroyed Hacking Suite. 01631_ Cld. VTOL Module destroyed. 01631_ Destroyed Cld. VTOL Module. 01631_ Hvy. Missile Launcher destroyed. 01631_ Destroyed Hvy. Missile Launcher. 01641_ NEW_ZION: Z-Facility proximity alert. 01672_ as-01424 destroyed. 01672_ as-26867 destroyed. 01674_ Hvy. Missile Launcher destroyed. Z-Imprinter: GET AWAY FROM HERE! I've worked too hard for our future just to have you ruin everything! 01710_ Imp. Cesium-ion Thruster destroyed. 01715_ Acquired 4 matter. 01715_ Acquired 9 matter. 01732_ Acquired Lgt. Nuclear Core. 01736_ Xenon Bombardment Thruster destroyed. 01737_ as-76364: "DSI9AT1D G8OHIBQ29FWG 26R186 QD12WHW8W33 TDK1 81FTS" 01739_ Imp. VTOL Module destroyed. Map ----- +----------------------------------------------------+ | | | | | | | | | | | | | | | | | | | | | | | | | | | | | ?????????"###???????????????????????????????? | | ????????? ??????????????????????????????? | | ?????????? ?????????????????????????????# | | ????????""" ?????????????????????????????# | | ????????" ?#??#??????????#####???????## | | ????????" # # #????????# ???????# | | ????????"" # # #????????# " ???????# | | ????????" # ####?????# """ #?####?## | | ????????"" # ## #?????# "" ## #### | | ????????" ## #????## | | ????????""" ## #????# | | ????????"G @## #????# ## | | ????????" ] # ###### #? | | ????????" ### ##? | | ????????# ###?## ##?# | | ????????"" ##????# ###?# | | ?????????" ###?????## #???# | | ?????????" #??????##### ##### | | ?????????" #####?????????# ### | | ????????"" #?# #?????????# "## | | ????????# l! I### ####??????#### ##? | | ????????# # #????????## ## | | ????????# M ##?????????## | | ????????# ###??????## | | ????????# #?????## | | ????????# ###?????# | | ????????# = ##??????# ### | | ????????# #??????# ##### | | ????????# == #?????## # | | ????????# * !! #?????# # | | ????????# = #?????# ### # | | ????????"" * ! #?????# #?# | | ?????????" ! #?????## ##?# | | ?????????" == #??????## #??#### | | ?????????" ##??????# #?????? | | ?????????" = = = #??????# #???### | +----------------------------------------------------+ Best States ------------- Heat Dissipation 34 Energy Generation 26 Energy Capacity 440 Matter Stores 300 Matter Capacity 300 Sight Range 18 Terrain Scan Density 10 Evasion (%) 65 Melee Accuracy 6 Recoil Reduction 3 Offensive Hacking 20 Defensive Hacking 10 Authchip Count 1 Item Schematics ----------------- VTOL Module | -9/Recycling | Hacked Imp. VTOL Module | -7/Factory | Hacked Xenon Bombardment Thruster | -7/Zion | Archive Imp. Cryofiber Web | -7/Zion | Archive Mak. Axe | -7/Zion | Archive Power Sword | -7/Zion | Archive Imp. Shield Generator | -7/Zion | Archive Fusion Compressor | -7/Zion | Archive Microactuators | -7/Zion | Archive KE Penetrator | -7/Zion | Archive Enh. Gauss Cannon | -7/Zion | Archive Hvy. Missile Launcher | -7/Zion | Archive Plasma Rifle | -7/Zion | Archive Med. Insulated Plating | -7/Zion | Archive Lgt. Angular Momentum Engine | -7/Zion | Archive Arm. Leg | -7/Zion | Archive Mak. Hammer | -7/Zion | Archive Robot Schematics ------------------ W-25 Informer | -7/Zion | Archive B-48 Gladiator | -7/Zion | Archive H-55 Commando | -7/Zion | Archive Fabricated ------------ Imp. VTOL Module | x1 | -7/Factory | Authchip Imp. VTOL Module | x1 | -7/Factory Imp. VTOL Module | x1 | -7/Factory Alien Tech Used ----------------- None Achievements -------------- None Challenges ------------ None Game ------ Seed RecyclingThermicScrap Manual? 0 Play Time 00:31:20 Cumulative 149.0 hours Start 2023.04.26 @ 18:29:57 End 2023.04.26 @ 19:01:56 Sessions 1 Manual Loads 0 Difficulty Rogue Special Mode None Game No. 431 Rogue 431 Adventurer 0 Explorer 0 Win Type - Total 7 Types 6/0/0/1/0/0/0/0/0 Lore% 65 Gallery% 70 Achievement% 61 Wizard Run 0 Options --------- ASCII 0 Keyboard 0 Movement Numpad Keybinds 0 Fullscreen 1 Font 16/SmallcapsGlow Map View 75x55 Tactical HUD 1 Map Filters NONE Filters NONE Steam 1 RUN: 2bba91cd-147e-4413-b4bd-63e9da02c87f